[Event "Early-Titled-Tuesday-Blitz-May-14-2024"]
[Site "Chess.com"]
[Date "2024.05.14"]
[Round "2"]
[White "arenal72"]
[Black "tjychess"]
[Result "0-1"]
[WhiteElo "2628"]
[BlackElo "2942"]
[TimeControl "180+1"]
[EndTime "8:19:23 PDT"]
[Termination "tjychess won by checkmate"]

1. Nf3 {[%clk 0:03:00.9]} 1... d5 {[%clk 0:02:58.8]} 2. g3 {[%clk 0:02:59.9]}
2... Nf6 {[%clk 0:02:58.6]} 3. Bg2 {[%clk 0:03:00]} 3... c6 {[%clk 0:02:58.8]}
4. O-O {[%clk 0:03:00.2]} 4... Bg4 {[%clk 0:02:59.1]} 5. h3 {[%clk 0:02:59.1]}
5... Bh5 {[%clk 0:02:57.1]} 6. d3 {[%clk 0:02:59]} 6... Nbd7 {[%clk 0:02:57]} 7.
c4 {[%clk 0:02:55]} 7... dxc4 {[%clk 0:02:53.7]} 8. dxc4 {[%clk 0:02:54.3]} 8...
e5 {[%clk 0:02:54.3]} 9. Nc3 {[%clk 0:02:51.3]} 9... Be7 {[%clk 0:02:53.2]} 10.
Qc2 {[%clk 0:02:49.3]} 10... O-O {[%clk 0:02:52.6]} 11. Nh4 {[%clk 0:02:47]}
11... Re8 {[%clk 0:02:52.7]} 12. g4 {[%clk 0:02:44.7]} 12... Bg6 {[%clk
0:02:52.8]} 13. Nxg6 {[%clk 0:02:41.9]} 13... hxg6 {[%clk 0:02:53.7]} 14. Be3
{[%clk 0:02:34]} 14... Qc7 {[%clk 0:02:52]} 15. Rfd1 {[%clk 0:02:29.6]} 15...
Nc5 {[%clk 0:02:48.7]} 16. b4 {[%clk 0:02:11.1]} 16... Ne6 {[%clk 0:02:48.5]}
17. c5 {[%clk 0:02:11.5]} 17... Rad8 {[%clk 0:02:45.4]} 18. Rxd8 {[%clk
0:02:05.3]} 18... Rxd8 {[%clk 0:02:46.3]} 19. Rd1 {[%clk 0:02:05]} 19... Nd4
{[%clk 0:02:42.7]} 20. Qb2 {[%clk 0:01:49.9]} 20... Nh7 {[%clk 0:02:32.3]} 21.
Bxd4 {[%clk 0:01:39.8]} 21... exd4 {[%clk 0:02:33.2]} 22. Ne4 {[%clk 0:01:38.9]}
22... f5 {[%clk 0:01:54.2]} 23. gxf5 {[%clk 0:01:31.2]} 23... gxf5 {[%clk
0:01:54.6]} 24. Ng3 {[%clk 0:01:31.4]} 24... g6 {[%clk 0:01:04.9]} 25. Rxd4
{[%clk 0:01:25.4]} 25... Bf6 {[%clk 0:01:05.5]} 26. Rxd8+ {[%clk 0:01:24.9]}
26... Qxd8 {[%clk 0:01:06.4]} 27. Qc2 {[%clk 0:01:24]} 27... a6 {[%clk
0:00:34.9]} 28. e3 {[%clk 0:01:22.6]} 28... Kg7 {[%clk 0:00:32.8]} 29. a4 {[%clk
0:01:21.5]} 29... Qd7 {[%clk 0:00:29.2]} 30. f4 {[%clk 0:01:00.2]} 30... Nf8
{[%clk 0:00:27.5]} 31. e4 {[%clk 0:00:40]} 31... Qd4+ {[%clk 0:00:24.6]} 32. Kh2
{[%clk 0:00:39.2]} 32... Qxb4 {[%clk 0:00:23.3]} 33. e5 {[%clk 0:00:29.5]} 33...
Be7 {[%clk 0:00:23.7]} 34. Nxf5+ {[%clk 0:00:25.3]} 34... gxf5 {[%clk
0:00:24.6]} 35. Qxf5 {[%clk 0:00:25.4]} 35... Qxc5 {[%clk 0:00:23.2]} 36. Qg4+
{[%clk 0:00:21.6]} 36... Kf7 {[%clk 0:00:22.5]} 37. Qh5+ {[%clk 0:00:20.2]}
37... Ke6 {[%clk 0:00:22.2]} 38. Qg4+ {[%clk 0:00:20.1]} 38... Kf7 {[%clk
0:00:22.5]} 39. Qh5+ {[%clk 0:00:20.3]} 39... Kg7 {[%clk 0:00:21.6]} 40. Qg4+
{[%clk 0:00:20]} 40... Kh6 {[%clk 0:00:22.3]} 41. Qg8 {[%clk 0:00:12]} 41... Qf2
{[%clk 0:00:12.7]} 42. Qf7 {[%clk 0:00:09.6]} 42... Qh4 {[%clk 0:00:11.3]} 43.
f5 {[%clk 0:00:07.7]} 43... Qf4+ {[%clk 0:00:10.8]} 44. Kh1 {[%clk 0:00:08.2]}
44... Qc1+ {[%clk 0:00:08.9]} 45. Kh2 {[%clk 0:00:08]} 45... Qf4+ {[%clk
0:00:09.6]} 46. Kh1 {[%clk 0:00:08.4]} 46... Qxe5 {[%clk 0:00:10.4]} 47. Bf3
{[%clk 0:00:08.2]} 47... Qf6 {[%clk 0:00:09.2]} 48. Qh5+ {[%clk 0:00:05.6]}
48... Kg7 {[%clk 0:00:09.6]} 49. h4 {[%clk 0:00:04.5]} 49... Qxh4+ {[%clk
0:00:09.7]} 50. Qxh4 {[%clk 0:00:04.8]} 50... Bxh4 {[%clk 0:00:10.6]} 51. Kg2
{[%clk 0:00:05.4]} 51... Kf6 {[%clk 0:00:11.3]} 52. Kh3 {[%clk 0:00:05.6]} 52...
Bg5 {[%clk 0:00:11.9]} 53. Kg4 {[%clk 0:00:06.3]} 53... Nd7 {[%clk 0:00:12.6]}
54. Be2 {[%clk 0:00:05.5]} 54... a5 {[%clk 0:00:12.3]} 55. Bd3 {[%clk
0:00:04.7]} 55... Nc5 {[%clk 0:00:12.8]} 56. Bc2 {[%clk 0:00:03.9]} 56... b5
{[%clk 0:00:12.4]} 57. axb5 {[%clk 0:00:04.8]} 57... cxb5 {[%clk 0:00:13.3]} 58.
Kf3 {[%clk 0:00:05.7]} 58... Ke5 {[%clk 0:00:12.9]} 59. Ke2 {[%clk 0:00:06.2]}
59... a4 {[%clk 0:00:13.3]} 60. Bb1 {[%clk 0:00:05.6]} 60... b4 {[%clk
0:00:13.7]} 61. Kd1 {[%clk 0:00:06.2]} 61... Kd4 {[%clk 0:00:13.7]} 62. Kc2
{[%clk 0:00:06.1]} 62... Kc4 {[%clk 0:00:12.4]} 63. Kb2 {[%clk 0:00:05.9]} 63...
Bf6+ {[%clk 0:00:12.7]} 64. Ka2 {[%clk 0:00:06.2]} 64... Kc3 {[%clk 0:00:12.7]}
65. Ka1 {[%clk 0:00:04.4]} 65... Kb3# {[%clk 0:00:12.9]} 0-1

[Event "Early-Titled-Tuesday-Blitz-May-14-2024"]
[Site "Chess.com"]
[Date "2024.05.14"]
[Round "2"]
[White "ahmedkandiliii"]
[Black "Zhigalko_Sergei"]
[Result "1-0"]
[WhiteElo "2616"]
[BlackElo "2859"]
[TimeControl "180+1"]
[EndTime "8:19:23 PDT"]
[Termination "ahmedkandiliii won on time"]

1. e4 {[%clk 0:02:48.8]} 1... c5 {[%clk 0:02:59.8]} 2. Nf3 {[%clk 0:02:45.6]}
2... Nc6 {[%clk 0:02:58.9]} 3. d4 {[%clk 0:02:45.1]} 3... cxd4 {[%clk
0:02:59.8]} 4. Nxd4 {[%clk 0:02:45.1]} 4... Nf6 {[%clk 0:03:00.4]} 5. Nc3 {[%clk
0:02:42.6]} 5... e5 {[%clk 0:03:00.3]} 6. Nxc6 {[%clk 0:02:40]} 6... bxc6 {[%clk
0:03:00.3]} 7. Bd3 {[%clk 0:02:39.9]} 7... Bc5 {[%clk 0:02:59.6]} 8. O-O {[%clk
0:02:40]} 8... O-O {[%clk 0:02:59.3]} 9. Qf3 {[%clk 0:02:39.5]} 9... Rb8 {[%clk
0:02:57.3]} 10. Bg5 {[%clk 0:02:35]} 10... Bd4 {[%clk 0:02:49.2]} 11. Rab1
{[%clk 0:02:34.4]} 11... d6 {[%clk 0:02:44.9]} 12. Ne2 {[%clk 0:02:33.6]} 12...
Rxb2 {[%clk 0:02:00.3]} 13. Nxd4 {[%clk 0:02:22.2]} 13... Rxb1 {[%clk
0:01:59.7]} 14. Rxb1 {[%clk 0:02:22.8]} 14... exd4 {[%clk 0:01:59.5]} 15. Rb8
{[%clk 0:02:11.2]} 15... Qa5 {[%clk 0:01:26.1]} 16. Bxf6 {[%clk 0:01:19.4]}
16... Qe1+ {[%clk 0:01:24.9]} 17. Bf1 {[%clk 0:01:20.1]} 17... Ba6 {[%clk
0:01:25.7]} 18. h3 {[%clk 0:00:44.1]} 18... Rxb8 {[%clk 0:00:58.7]} 19. Qg3
{[%clk 0:00:38.6]} 19... g6 {[%clk 0:00:40.4]} 20. Qf4 {[%clk 0:00:34.9]} 20...
Rb1 {[%clk 0:00:04]} 21. Qh6 {[%clk 0:00:26.2]} 21... Qxf2+ {[%clk 0:00:03.9]}
22. Kxf2 {[%clk 0:00:24.6]} 22... Rxf1+ {[%clk 0:00:04.5]} 23. Kg3 {[%clk
0:00:24.5]} 23... Rxf6 {[%clk 0:00:05.4]} 24. Qd2 {[%clk 0:00:20.8]} 24... c5
{[%clk 0:00:04.3]} 25. Qa5 {[%clk 0:00:20.7]} 25... Bc4 {[%clk 0:00:03]} 26.
Qxa7 {[%clk 0:00:19.7]} 26... Re6 {[%clk 0:00:02.8]} 27. Qb7 {[%clk 0:00:19.3]}
27... Kg7 {[%clk 0:00:02.8]} 28. a4 {[%clk 0:00:19.5]} 28... d3 {[%clk
0:00:03.3]} 29. cxd3 {[%clk 0:00:18.4]} 29... Bxd3 {[%clk 0:00:04.2]} 30. a5
{[%clk 0:00:15.7]} 30... Bxe4 {[%clk 0:00:04.1]} 31. Qb2+ {[%clk 0:00:14.9]}
31... Kg8 {[%clk 0:00:03]} 32. a6 {[%clk 0:00:15.3]} 32... Re8 {[%clk
0:00:03.1]} 33. a7 {[%clk 0:00:15.4]} 33... Ra8 {[%clk 0:00:03.3]} 34. Qb6
{[%clk 0:00:15.5]} 34... f5 {[%clk 0:00:02.6]} 35. Qxd6 {[%clk 0:00:15.1]} 35...
Kg7 {[%clk 0:00:01.3]} 36. Qxc5 {[%clk 0:00:15]} 36... Kh6 {[%clk 0:00:02.1]}
37. Kf4 {[%clk 0:00:14.9]} 37... Bxg2 {[%clk 0:00:02]} 38. Ke5 {[%clk
0:00:12.4]} 38... Be4 {[%clk 0:00:02.1]} 39. Kf6 {[%clk 0:00:12.3]} 39... Kh5
{[%clk 0:00:02.2]} 40. Qe3 {[%clk 0:00:12.2]} 40... Kh4 {[%clk 0:00:02.7]} 41.
Qh6+ {[%clk 0:00:10.6]} 41... Kg3 {[%clk 0:00:03.1]} 42. Qe3+ {[%clk 0:00:07.7]}
42... Kg2 {[%clk 0:00:02.6]} 43. Kg5 {[%clk 0:00:07.9]} 43... h6+ {[%clk
0:00:02.5]} 44. Kxh6 {[%clk 0:00:05.2]} 44... Rh8+ {[%clk 0:00:02.6]} 45. Kg5
{[%clk 0:00:05.5]} 45... Rxh3 {[%clk 0:00:03.5]} 46. Qxe4+ {[%clk 0:00:05.6]}
46... fxe4 {[%clk 0:00:03.6]} 47. a8=Q {[%clk 0:00:05.9]} 47... Kf3 {[%clk
0:00:03.6]} 48. Qf8+ {[%clk 0:00:05.4]} 48... Ke2 {[%clk 0:00:02.8]} 49. Qa8
{[%clk 0:00:04.4]} 49... Rg3+ {[%clk 0:00:01.8]} 50. Kf4 {[%clk 0:00:04.2]}
50... Rf3+ {[%clk 0:00:01.4]} 51. Kxe4 {[%clk 0:00:04.4]} 51... Re3+ {[%clk
0:00:02]} 52. Kf4 {[%clk 0:00:04.5]} 52... Rd3 {[%clk 0:00:02.3]} 53. Qa2+
{[%clk 0:00:04.6]} 53... Rd2 {[%clk 0:00:02.3]} 54. Qc4+ {[%clk 0:00:05.3]}
54... Kd1 {[%clk 0:00:01.5]} 55. Ke3 {[%clk 0:00:05]} 55... g5 {[%clk
0:00:01.4]} 56. Qc3 {[%clk 0:00:04.8]} 56... Rf2 {[%clk 0:00:00.6]} 57. Kxf2
{[%clk 0:00:04.4]} 57... g4 {[%clk 0:00:00.8]} 58. Ke3 {[%clk 0:00:05.1]} 1-0

[Event "Early-Titled-Tuesday-Blitz-May-14-2024"]
[Site "Chess.com"]
[Date "2024.05.14"]
[Round "2"]
[White "betta2004"]
[Black "DreamsAreFake"]
[Result "0-1"]
[WhiteElo "2500"]
[BlackElo "2772"]
[TimeControl "180+1"]
[EndTime "8:19:23 PDT"]
[Termination "DreamsAreFake won by resignation"]

1. Nf3 {[%clk 0:03:00.9]} 1... Nf6 {[%clk 0:03:00]} 2. e3 {[%clk 0:02:59.1]}
2... b6 {[%clk 0:03:00.1]} 3. b3 {[%clk 0:02:59.2]} 3... Bb7 {[%clk 0:03:00.4]}
4. Bb2 {[%clk 0:02:59.7]} 4... g6 {[%clk 0:03:01.1]} 5. Be2 {[%clk 0:02:59.3]}
5... Bg7 {[%clk 0:03:01.5]} 6. O-O {[%clk 0:02:59.8]} 6... O-O {[%clk
0:03:01.6]} 7. c4 {[%clk 0:03:00.3]} 7... c5 {[%clk 0:03:01.3]} 8. d4 {[%clk
0:03:00.9]} 8... cxd4 {[%clk 0:02:58.1]} 9. exd4 {[%clk 0:03:01.4]} 9... d5
{[%clk 0:02:57.2]} 10. Re1 {[%clk 0:03:00.5]} 10... Nc6 {[%clk 0:02:56.3]} 11.
Ne5 {[%clk 0:02:59.1]} 11... Rc8 {[%clk 0:02:52.3]} 12. Bf3 {[%clk 0:02:57.6]}
12... e6 {[%clk 0:02:51.9]} 13. Nd2 {[%clk 0:02:40.8]} 13... Nd7 {[%clk
0:02:49.1]} 14. cxd5 {[%clk 0:02:35.9]} 14... Ndxe5 {[%clk 0:02:47.2]} 15. dxe5
{[%clk 0:02:34.9]} 15... exd5 {[%clk 0:02:47.8]} 16. Nf1 {[%clk 0:02:35]} 16...
Ne7 {[%clk 0:02:36.7]} 17. Ng3 {[%clk 0:02:23.1]} 17... Rc7 {[%clk 0:02:33.1]}
18. Qe2 {[%clk 0:02:19.7]} 18... Re8 {[%clk 0:02:26.3]} 19. e6 {[%clk 0:02:16]}
19... Nc8 {[%clk 0:02:14.7]} 20. Bxg7 {[%clk 0:02:11.6]} 20... Kxg7 {[%clk
0:02:14.4]} 21. Qb2+ {[%clk 0:02:10.2]} 21... Kg8 {[%clk 0:02:04]} 22. exf7+
{[%clk 0:02:08.7]} 22... Rxf7 {[%clk 0:02:02.4]} 23. Qd4 {[%clk 0:02:04.3]}
23... Rxe1+ {[%clk 0:01:55.2]} 24. Rxe1 {[%clk 0:02:05.2]} 24... Ne7 {[%clk
0:01:55.8]} 25. h4 {[%clk 0:02:00.8]} 25... Qd6 {[%clk 0:01:52.8]} 26. h5 {[%clk
0:01:59.2]} 26... Rf4 {[%clk 0:01:52]} 27. Qe3 {[%clk 0:01:55]} 27... Rf7 {[%clk
0:01:49.3]} 28. hxg6 {[%clk 0:01:55]} 28... hxg6 {[%clk 0:01:49.7]} 29. Qg5
{[%clk 0:01:50.5]} 29... Bc8 {[%clk 0:01:47.6]} 30. Rd1 {[%clk 0:01:40]} 30...
Bf5 {[%clk 0:01:40.6]} 31. Ne2 {[%clk 0:01:31.7]} 31... Rh7 {[%clk 0:01:20]} 32.
g3 {[%clk 0:01:30.3]} 32... Rf7 {[%clk 0:01:19.8]} 33. Nd4 {[%clk 0:01:29.2]}
33... Bd7 {[%clk 0:01:16.6]} 34. Kg2 {[%clk 0:01:26.1]} 34... a5 {[%clk
0:01:13.7]} 35. Rh1 {[%clk 0:01:25.4]} 35... Qf6 {[%clk 0:01:13.9]} 36. Qe3
{[%clk 0:01:14.7]} 36... Bc8 {[%clk 0:00:55.5]} 37. Rc1 {[%clk 0:01:09.7]} 37...
g5 {[%clk 0:00:53.9]} 38. Rxc8+ {[%clk 0:00:55.4]} 38... Nxc8 {[%clk 0:00:54.8]}
39. Bxd5 {[%clk 0:00:55.8]} 39... Nd6 {[%clk 0:00:53.8]} 40. Nf3 {[%clk
0:00:51.9]} 40... Kg7 {[%clk 0:00:52.9]} 41. Bxf7 {[%clk 0:00:51.4]} 41... Nxf7
{[%clk 0:00:53.8]} 42. Qd4 {[%clk 0:00:51.1]} 42... Qxd4 {[%clk 0:00:53.8]} 43.
Nxd4 {[%clk 0:00:52]} 43... Kf6 {[%clk 0:00:54.7]} 44. Kf3 {[%clk 0:00:51.8]}
44... Ke5 {[%clk 0:00:55.6]} 45. Ke3 {[%clk 0:00:52.3]} 45... Kd5 {[%clk
0:00:56.4]} 46. f4 {[%clk 0:00:49.7]} 46... g4 {[%clk 0:00:54.8]} 47. Kd3 {[%clk
0:00:48.9]} 47... Nd6 {[%clk 0:00:54.8]} 48. Ne2 {[%clk 0:00:47.9]} 48... Nf5
{[%clk 0:00:49.9]} 49. a3 {[%clk 0:00:43.7]} 49... Kc5 {[%clk 0:00:48.3]} 50.
Ke4 {[%clk 0:00:43.1]} 50... Nd6+ {[%clk 0:00:48.7]} 51. Ke5 {[%clk 0:00:43.4]}
51... Nb5 {[%clk 0:00:46.6]} 52. a4 {[%clk 0:00:43.1]} 52... Na7 {[%clk
0:00:45.9]} 53. f5 {[%clk 0:00:42.9]} 53... Kb4 {[%clk 0:00:45.7]} 54. f6 {[%clk
0:00:42.5]} 54... Nc6+ {[%clk 0:00:45.6]} 55. Kd6 {[%clk 0:00:42]} 55... Nd8
{[%clk 0:00:46.2]} 56. Ke7 {[%clk 0:00:40.8]} 56... Nc6+ {[%clk 0:00:46.7]} 57.
Kd7 {[%clk 0:00:41.1]} 57... Ne5+ {[%clk 0:00:47.1]} 58. Ke6 {[%clk 0:00:41.7]}
58... Ng6 {[%clk 0:00:42.5]} 59. f7 {[%clk 0:00:40.8]} 59... Kxb3 {[%clk
0:00:40.9]} 60. Kf6 {[%clk 0:00:41.2]} 60... Nf8 {[%clk 0:00:41.4]} 61. Nd4+
{[%clk 0:00:41.5]} 61... Kxa4 {[%clk 0:00:40.1]} 62. Ne6 {[%clk 0:00:42.4]}
62... Nd7+ {[%clk 0:00:39.2]} 63. Ke7 {[%clk 0:00:42.3]} 63... Ne5 {[%clk
0:00:39.9]} 64. f8=Q {[%clk 0:00:33]} 64... Ng6+ {[%clk 0:00:39.8]} 65. Kd6
{[%clk 0:00:31.8]} 65... Nxf8 {[%clk 0:00:40.7]} 66. Nxf8 {[%clk 0:00:32.7]}
66... b5 {[%clk 0:00:40.7]} 67. Kc5 {[%clk 0:00:28.7]} 67... b4 {[%clk
0:00:40.2]} 68. Kc4 {[%clk 0:00:29.2]} 68... Ka3 {[%clk 0:00:39.7]} 69. Nd7
{[%clk 0:00:21.7]} 69... b3 {[%clk 0:00:35]} 70. Nb6 {[%clk 0:00:11.3]} 70... b2
{[%clk 0:00:32.3]} 71. Kc3 {[%clk 0:00:11.6]} 71... b1=Q {[%clk 0:00:31.4]} 72.
Nc4+ {[%clk 0:00:12]} 72... Ka2 {[%clk 0:00:31.7]} 73. Nd2 {[%clk 0:00:11.6]}
73... Qb2+ {[%clk 0:00:31.4]} 0-1

[Event "Early-Titled-Tuesday-Blitz-May-14-2024"]
[Site "Chess.com"]
[Date "2024.05.14"]
[Round "2"]
[White "Let_it_be_1"]
[Black "dretch"]
[Result "1-0"]
[WhiteElo "2629"]
[BlackElo "2892"]
[TimeControl "180+1"]
[EndTime "8:19:27 PDT"]
[Termination "Let_it_be_1 won by checkmate"]

1. e4 {[%clk 0:03:00.9]} 1... e6 {[%clk 0:02:55.8]} 2. d4 {[%clk 0:03:00.4]}
2... d5 {[%clk 0:02:55.9]} 3. Nd2 {[%clk 0:03:00.8]} 3... c5 {[%clk 0:02:55.3]}
4. Ngf3 {[%clk 0:03:00.5]} 4... cxd4 {[%clk 0:02:54.9]} 5. exd5 {[%clk
0:03:00.7]} 5... Qxd5 {[%clk 0:02:54.4]} 6. Bc4 {[%clk 0:03:00.8]} 6... Qd6
{[%clk 0:02:53.7]} 7. O-O {[%clk 0:03:01.3]} 7... Nf6 {[%clk 0:02:54.1]} 8. Nb3
{[%clk 0:03:01.6]} 8... Be7 {[%clk 0:02:51.1]} 9. Nfxd4 {[%clk 0:02:48.7]} 9...
O-O {[%clk 0:02:48.3]} 10. Re1 {[%clk 0:02:38.3]} 10... Bd7 {[%clk 0:02:18.7]}
11. Qf3 {[%clk 0:02:25.3]} 11... Nc6 {[%clk 0:02:16.1]} 12. c3 {[%clk
0:01:50.6]} 12... Ne5 {[%clk 0:02:03]} 13. Qe2 {[%clk 0:01:47]} 13... Nxc4
{[%clk 0:02:01.8]} 14. Qxc4 {[%clk 0:01:47.3]} 14... Rac8 {[%clk 0:01:31.5]} 15.
Qe2 {[%clk 0:01:46]} 15... Nd5 {[%clk 0:01:20.1]} 16. Qg4 {[%clk 0:01:25.5]}
16... Bf6 {[%clk 0:01:11.6]} 17. Qf3 {[%clk 0:01:02.1]} 17... b5 {[%clk
0:00:59.9]} 18. Bd2 {[%clk 0:01:00.7]} 18... b4 {[%clk 0:00:51.6]} 19. cxb4
{[%clk 0:00:54.8]} 19... Nxb4 {[%clk 0:00:51.8]} 20. Bc3 {[%clk 0:00:46.3]}
20... Nd5 {[%clk 0:00:49.1]} 21. Bd2 {[%clk 0:00:40]} 21... Rc4 {[%clk
0:00:43.1]} 22. Bc3 {[%clk 0:00:29.6]} 22... Rfc8 {[%clk 0:00:37.2]} 23. Rac1
{[%clk 0:00:28.7]} 23... Qa6 {[%clk 0:00:31]} 24. a3 {[%clk 0:00:19.4]} 24...
Qb6 {[%clk 0:00:22.3]} 25. h3 {[%clk 0:00:15.4]} 25... Nxc3 {[%clk 0:00:20.3]}
26. Rxc3 {[%clk 0:00:15]} 26... Rxc3 {[%clk 0:00:20.2]} 27. bxc3 {[%clk
0:00:15]} 27... e5 {[%clk 0:00:20.7]} 28. Nf5 {[%clk 0:00:07.3]} 28... Qxb3
{[%clk 0:00:17.6]} 29. Nd6 {[%clk 0:00:06.3]} 29... Qxc3 {[%clk 0:00:16.6]} 30.
Nxc8 {[%clk 0:00:05.2]} 30... Qxe1+ {[%clk 0:00:15.9]} 31. Kh2 {[%clk
0:00:04.6]} 31... Bxc8 {[%clk 0:00:16.4]} 32. Qc6 {[%clk 0:00:04.4]} 32... g6
{[%clk 0:00:16.4]} 33. Qxc8+ {[%clk 0:00:04.5]} 33... Kg7 {[%clk 0:00:16.9]} 34.
Qd7 {[%clk 0:00:04.7]} 34... Qxf2 {[%clk 0:00:16.6]} 35. Qxa7 {[%clk 0:00:03.1]}
35... Bg5 {[%clk 0:00:15.9]} 36. Qxf2 {[%clk 0:00:02.5]} 36... Bf4+ {[%clk
0:00:16.5]} 37. g3 {[%clk 0:00:03]} 37... Bg5 {[%clk 0:00:16.6]} 38. Qf3 {[%clk
0:00:03.4]} 38... f5 {[%clk 0:00:16.9]} 39. g4 {[%clk 0:00:03.4]} 39... e4
{[%clk 0:00:16.6]} 40. Qe2 {[%clk 0:00:03.4]} 40... Bf4+ {[%clk 0:00:16.5]} 41.
Kg2 {[%clk 0:00:03.3]} 41... Kf6 {[%clk 0:00:17.4]} 42. gxf5 {[%clk 0:00:03.3]}
42... gxf5 {[%clk 0:00:17.6]} 43. a4 {[%clk 0:00:04]} 43... Bc7 {[%clk
0:00:16.8]} 44. Qc4 {[%clk 0:00:04]} 44... Bd8 {[%clk 0:00:15]} 45. h4 {[%clk
0:00:04]} 45... Ke5 {[%clk 0:00:14.1]} 46. Qc5+ {[%clk 0:00:03.9]} 46... Ke6
{[%clk 0:00:13.6]} 47. Qc6+ {[%clk 0:00:03.9]} 47... Ke7 {[%clk 0:00:13.4]} 48.
Qc5+ {[%clk 0:00:04.2]} 48... Ke6 {[%clk 0:00:13.7]} 49. Kg3 {[%clk 0:00:04.2]}
49... Be7 {[%clk 0:00:13.3]} 50. Qc6+ {[%clk 0:00:04.2]} 50... Bd6+ {[%clk
0:00:14.2]} 51. Kf2 {[%clk 0:00:03.9]} 51... Ke5 {[%clk 0:00:14.7]} 52. Qb5+
{[%clk 0:00:02.5]} 52... Kf4 {[%clk 0:00:14.5]} 53. Qd5 {[%clk 0:00:02.8]} 53...
Bc7 {[%clk 0:00:14.2]} 54. h5 {[%clk 0:00:03.1]} 54... Bb6+ {[%clk 0:00:14]} 55.
Ke2 {[%clk 0:00:03.4]} 55... Kg4 {[%clk 0:00:14.9]} 56. Qg8+ {[%clk 0:00:02.8]}
56... Kf4 {[%clk 0:00:14.7]} 57. Qxh7 {[%clk 0:00:02.6]} 57... Bd4 {[%clk
0:00:14.2]} 58. Qh6+ {[%clk 0:00:02.9]} 58... Ke5 {[%clk 0:00:15]} 59. Qg5
{[%clk 0:00:03]} 59... Ke6 {[%clk 0:00:14.9]} 60. Qg6+ {[%clk 0:00:03.2]} 60...
Bf6 {[%clk 0:00:15.4]} 61. h6 {[%clk 0:00:03.7]} 61... Ke5 {[%clk 0:00:16.1]}
62. h7 {[%clk 0:00:03.6]} 62... Bh8 {[%clk 0:00:16]} 63. Qg8 {[%clk 0:00:03.5]}
63... Bf6 {[%clk 0:00:16.9]} 64. h8=Q {[%clk 0:00:03.8]} 64... f4 {[%clk
0:00:17.5]} 65. Qe8+ {[%clk 0:00:02.9]} 65... Kd6 {[%clk 0:00:17.2]} 66. Qef8+
{[%clk 0:00:01.4]} 66... Kc6 {[%clk 0:00:16.9]} 67. Qfxf6+ {[%clk 0:00:01.6]}
67... Kd5 {[%clk 0:00:17.8]} 68. Qxf4 {[%clk 0:00:02.3]} 68... Kc4 {[%clk
0:00:18.7]} 69. Qhe5 {[%clk 0:00:02.3]} 69... Kb3 {[%clk 0:00:19.6]} 70. Qexe4
{[%clk 0:00:02.5]} 70... Ka3 {[%clk 0:00:20.5]} 71. Qee3+ {[%clk 0:00:02.7]}
71... Ka2 {[%clk 0:00:20.5]} 72. Kf3 {[%clk 0:00:03.6]} 72... Kb1 {[%clk
0:00:21.4]} 73. Kg4 {[%clk 0:00:04.2]} 73... Kc2 {[%clk 0:00:21.7]} 74. Qff2+
{[%clk 0:00:04.7]} 74... Kb1 {[%clk 0:00:22.6]} 75. Qee1# {[%clk 0:00:05.3]} 1-0

[Event "Early-Titled-Tuesday-Blitz-May-14-2024"]
[Site "Chess.com"]
[Date "2024.05.14"]
[Round "2"]
[White "Lennis93"]
[Black "VacheH009"]
[Result "1-0"]
[WhiteElo "2793"]
[BlackElo "2552"]
[TimeControl "180+1"]
[EndTime "8:19:27 PDT"]
[Termination "Lennis93 won by checkmate"]

1. d4 {[%clk 0:03:00.9]} 1... Nf6 {[%clk 0:02:55.7]} 2. Nf3 {[%clk 0:03:01.4]}
2... g6 {[%clk 0:02:54.3]} 3. c4 {[%clk 0:03:01.9]} 3... Bg7 {[%clk 0:02:55]} 4.
Nc3 {[%clk 0:03:02.5]} 4... O-O {[%clk 0:02:55.7]} 5. e4 {[%clk 0:03:03.1]} 5...
d6 {[%clk 0:02:56.4]} 6. Bd3 {[%clk 0:03:03.4]} 6... e5 {[%clk 0:02:56]} 7. d5
{[%clk 0:03:03.4]} 7... a5 {[%clk 0:02:55.3]} 8. h3 {[%clk 0:03:03.5]} 8... Na6
{[%clk 0:02:53.7]} 9. Be3 {[%clk 0:03:03.7]} 9... Nh5 {[%clk 0:02:47.4]} 10. g3
{[%clk 0:03:01.1]} 10... Qe8 {[%clk 0:02:36.4]} 11. a3 {[%clk 0:02:45.2]} 11...
Bd7 {[%clk 0:02:18.8]} 12. Qe2 {[%clk 0:02:43.9]} 12... f5 {[%clk 0:02:15.2]}
13. exf5 {[%clk 0:02:39.4]} 13... gxf5 {[%clk 0:02:16.1]} 14. Ng5 {[%clk
0:02:21.9]} 14... a4 {[%clk 0:01:57.3]} 15. g4 {[%clk 0:02:01.6]} 15... Nf4
{[%clk 0:01:45]} 16. Bxf4 {[%clk 0:02:00.7]} 16... exf4 {[%clk 0:01:45.9]} 17.
Ne6 {[%clk 0:01:50.9]} 17... Bxe6 {[%clk 0:01:40.3]} 18. dxe6 {[%clk 0:01:44.1]}
18... f3 {[%clk 0:01:12.5]} 19. Qe3 {[%clk 0:01:22.6]} 19... f4 {[%clk 0:00:47]}
20. Qe4 {[%clk 0:01:20.1]} 20... Rf6 {[%clk 0:00:46.4]} 21. Qxh7+ {[%clk
0:01:14.3]} 21... Kf8 {[%clk 0:00:46.1]} 22. O-O-O {[%clk 0:01:01]} 22... Rxe6
{[%clk 0:00:39.5]} 23. Nd5 {[%clk 0:00:54.7]} 23... Qf7 {[%clk 0:00:34.1]} 24.
g5 {[%clk 0:00:38.5]} 24... c6 {[%clk 0:00:29.6]} 25. g6 {[%clk 0:00:29.3]}
25... Qd7 {[%clk 0:00:09.6]} 26. Nxf4 {[%clk 0:00:27.1]} 26... Re5 {[%clk
0:00:09.8]} 27. h4 {[%clk 0:00:07.7]} 27... Qe7 {[%clk 0:00:08.8]} 28. h5 {[%clk
0:00:06.9]} 28... Qf6 {[%clk 0:00:09.2]} 29. h6 {[%clk 0:00:05.2]} 29... Qxf4+
{[%clk 0:00:07.2]} 30. Kb1 {[%clk 0:00:05.4]} 30... Re7 {[%clk 0:00:03.1]} 31.
hxg7+ {[%clk 0:00:05.4]} 31... Rxg7 {[%clk 0:00:03.9]} 32. Qh8+ {[%clk
0:00:05.6]} 32... Rg8 {[%clk 0:00:04.5]} 33. Qc3 {[%clk 0:00:05.6]} 33... Nc5
{[%clk 0:00:03]} 34. Bc2 {[%clk 0:00:06]} 34... Qe5 {[%clk 0:00:02.5]} 35. Qb4
{[%clk 0:00:02.3]} 35... Rg7 {[%clk 0:00:02.3]} 36. Rh8+ {[%clk 0:00:02.3]}
36... Rg8 {[%clk 0:00:02.9]} 37. Rh7 {[%clk 0:00:03.2]} 37... Rg7 {[%clk
0:00:03]} 38. Rdh1 {[%clk 0:00:03.4]} 38... Rxh7 {[%clk 0:00:03]} 39. gxh7
{[%clk 0:00:04.3]} 39... Qh8 {[%clk 0:00:03.4]} 40. Qd2 {[%clk 0:00:04.5]} 40...
Ke7 {[%clk 0:00:03.3]} 41. Qg5+ {[%clk 0:00:04.3]} 41... Kd7 {[%clk 0:00:02.6]}
42. Bf5+ {[%clk 0:00:04.1]} 42... Kc7 {[%clk 0:00:03.1]} 43. Rh6 {[%clk
0:00:04.1]} 43... Rf8 {[%clk 0:00:02.4]} 44. Qf4 {[%clk 0:00:04.3]} 44... Kb6
{[%clk 0:00:02.8]} 45. Qxd6 {[%clk 0:00:03.8]} 45... Rxf5 {[%clk 0:00:02.5]} 46.
Qg6 {[%clk 0:00:03.8]} 46... Rf8 {[%clk 0:00:02.7]} 47. Rh5 {[%clk 0:00:03]}
47... Qd4 {[%clk 0:00:02.9]} 48. Qg8 {[%clk 0:00:02.2]} 48... Qd1+ {[%clk
0:00:03]} 49. Ka2 {[%clk 0:00:02.8]} 49... Qb3+ {[%clk 0:00:03.7]} 50. Kb1
{[%clk 0:00:03.3]} 50... Nd3 {[%clk 0:00:02.7]} 51. Qg7 {[%clk 0:00:02.2]} 51...
Qd1+ {[%clk 0:00:03.1]} 52. Ka2 {[%clk 0:00:01.8]} 52... Qb3+ {[%clk 0:00:04]}
53. Kb1 {[%clk 0:00:02.1]} 53... Re8 {[%clk 0:00:03.8]} 54. Qd4+ {[%clk
0:00:01.3]} 54... Ka6 {[%clk 0:00:04.5]} 55. Rh1 {[%clk 0:00:01.3]} 55... Re2
{[%clk 0:00:03.7]} 56. h8=Q {[%clk 0:00:00.7]} 56... Nxb2 {[%clk 0:00:03.1]} 57.
Qxb2 {[%clk 0:00:01.6]} 57... Qd3+ {[%clk 0:00:02.8]} 58. Ka1 {[%clk 0:00:00.9]}
58... Re4 {[%clk 0:00:03.5]} 59. Qhc3 {[%clk 0:00:01.1]} 59... Qd6 {[%clk
0:00:02.9]} 60. Qcc2 {[%clk 0:00:01.4]} 60... Rd4 {[%clk 0:00:03.3]} 61. Qxa4#
{[%clk 0:00:01.9]} 1-0